[Event "24th European Women Club Cup 2019"]
[Site "Ulcinj"]
[Date "2019.11.15"]
[Round "6.10"]
[White "Bulmaga, Irina"]
[Black "Pogonina, Natalija"]
[Result "1/2-1/2"]
[ECO "C92"]
[WhiteElo "2435"]
[BlackElo "2479"]
[Annotator "ChessBase"]
[PlyCount "130"]
[EventDate "2019.11.10"]
[EventType "team-tourn"]
[EventCountry "MNE"]
[SourceTitle "playchess.com"]
[Source "ChessBase"]
[SourceQuality "1"]
[WhiteTeam "Novy Bor"]
[BlackTeam "Ugra"]
[TimeControl "40/5400+30:1800+30"]

1. e4 {[%emt 0:00:00]} e5 {[%emt 0:00:00]} 2. Nf3 {[%emt 0:00:00]} Nc6 {[%emt 0:00:00]} 3. Bb5 {[%emt 0:00:00]} a6 {[%emt 0:00:00]} 4. Ba4 {[%emt 0:00:00]} Nf6 {[%emt 0:00:07]} 5. O-O {[%emt 0:00:07]} Be7 {[%emt 0:00:28]} 6. Re1 {[%emt 0:00:13]} b5 {[%emt 0:00:12]} 7. Bb3 {[%emt 0:00:06]} d6 {[%emt 0:00:38]} 8. c3 {[%emt 0:00:09]} O-O {[%emt 0:00:09]} 9. h3 {[%emt 0:00:06]} Re8 {[%emt 0:06:04]} 10. d4 {[%emt 0:01:56]} Bb7 {[%emt 0:00:06]} 11. a4 {[%emt 0:04:59]} h6 {[%emt 0:01:52]} 12. Nbd2 {[%emt 0:09:54]} Bf8 {[%emt 0:12:06]} 13. d5 {[%emt 0:03:50]} Nb8 {[%emt 0:10:10]} 14. axb5 {[%emt 0:13:00]} axb5 {[%emt 0:00:11]} 15. Rxa8 {[%emt 0:00:06]} Bxa8 {[%emt 0:00:03]} 16. Nf1 {[%emt 0:00:49]} Nbd7 {[%emt 0:03:22]} 17. Ng3 {[%emt 0:03:07]} Nc5 {[%emt 0:07:03]} 18. Bc2 {[%emt 0:00:30]} c6 {[%emt 0:00:16]} 19. b4 {[%emt 0:11:12]} Ncd7 {[%emt 0:01:08]} 20. dxc6 {[%emt 0:00:23]} Bxc6 {[%emt 0:00:12]} 21. Bb3 {[%emt 0:09:24]} Qc7 {[%emt 0:05:32]} 22. Nh2 {[%emt 0:02:12]} Nb6 {[%emt 0:03:46]} 23. Ng4 {[%emt 0:03:03]} Nxg4 {[%emt 0:03:46]} 24. hxg4 {[%emt 0:01:58]} Bd7 {[%emt 0:09:51]} 25. Be3 {[%emt 0:00:59]} Nc4 {[%emt 0:02:01]} 26. Nh5 {[%emt 0:14:41]} Be7 {[%emt 0:07:46]} 27. Ng3 {[%emt 0:02:37]} Be6 {[%emt 0:01:20]} 28. Nf5 {[%emt 0:00:36]} Bf8 {[%emt 0:01:03]} 29. g5 {[%emt 0:04:51]} hxg5 {[%emt 0:08:52]} 30. Bxg5 {[%emt 0:00:14]} d5 {[%emt 0:00:32]} 31. Ne3 {[%emt 0:04:04]} dxe4 {[%emt 0:05:24]} 32. Nxc4 {[%emt 0:01:43]} Bxc4 {[%emt 0:01:35]} 33. Rxe4 {[%emt 0:01:18]} Bxb3 {[%emt 0:01:08]} 34. Qxb3 {[%emt 0:00:03]} Qd6 {[%emt 0:00:26]} 35. Bf4 {[%emt 0:04:19]} Ra8 {[%emt 0:08:29]} 36. Rxe5 {[%emt 0:02:13]} Qf6 {[%emt 0:00:54]} 37. g3 {[%emt 0:00:37]} Bd6 {[%emt 0:00:44]} 38. Re4 {[%emt 0:02:36]} Bxf4 {[%emt 0:00:57]} 39. Rxf4 {[%emt 0:00:02]} Ra1+ {[%emt 0:00:17]} 40. Kg2 {[%emt 0:00:00]} Qc6+ {[%emt 0:00:00]} 41. f3 {[%emt 0:06:18]} Qg6 {[%emt 0:12:19]} 42. Qd5 {[%emt 0:08:49]} Qc2+ {[%emt 0:12:19]} 43. Kh3 {[%emt 0:00:06]} Rh1+ {[%emt 0:00:03]} 44. Kg4 {[%emt 0:00:05]} Qg6+ {[%emt 0:00:26]} 45. Qg5 {[%emt 0:00:06]} Qxg5+ {[%emt 0:00:35]} 46. Kxg5 {[%emt 0:00:02]} Rc1 {[%emt 0:00:06]} 47. Rf5 {[%emt 0:05:55]} Rxc3 {[%emt 0:00:06]} 48. Rxb5 {[%emt 0:03:54]} Rxf3 {[%emt 0:00:06]} 49. Kg4 {[%emt 0:00:22]} Rb3 {[%emt 0:00:23]} 50. Kf4 {[%emt 0:02:24]} Kh7 {[%emt 0:00:39]} 51. g4 {[%emt 0:03:32]} Kg6 {[%emt 0:03:11]} 52. Rb6+ {[%emt 0:00:55]} f6 {[%emt 0:00:44]} 53. Rb7 {[%emt 0:04:02]} Kh6 {[%emt 0:01:51]} 54. Rb5 {[%emt 0:01:57]} Kg6 {[%emt 0:01:09]} 55. Rb7 {[%emt 0:00:05]} Kh6 {[%emt 0:00:04]} 56. Rb6 {[%emt 0:00:31]} Kg6 {[%emt 0:01:57]} 57. g5 {[%emt 0:00:20]} Rb1 {[%emt 0:00:28]} 58. gxf6 {[%emt 0:00:14]} gxf6 {[%emt 0:00:04]} 59. b5 {[%emt 0:01:00]} Rb4+ {[%emt 0:00:25]} 60. Ke3 {[%emt 0:00:12]} Kf5 {[%emt 0:00:23]} 61. Kd3 {[%emt 0:00:24]} Ke5 {[%emt 0:00:26]} 62. Kc3 {[%emt 0:00:08]} Rb1 {[%emt 0:00:06]} 63. Kc4 {[%emt 0:00:09]} Rc1+ {[%emt 0:00:18]} 64. Kb4 {[%emt 0:00:10]} Rb1+ {[%emt 0:00:00]} 65. Kc4 {[%emt 0:00:08]} Rc1+ {[%emt 0:00:09]} 1/2-1/2

[Event "24th European Women Club Cup 2019"]
[Site "Ulcinj"]
[Date "2019.11.15"]
[Round "6.11"]
[White "Girya, Olga"]
[Black "Hoang, Thanh Trang"]
[Result "1/2-1/2"]
[ECO "A88"]
[WhiteElo "2476"]
[BlackElo "2414"]
[Annotator "ChessBase"]
[PlyCount "107"]
[EventDate "2019.11.10"]
[EventType "team-tourn"]
[EventCountry "MNE"]
[SourceTitle "playchess.com"]
[Source "ChessBase"]
[SourceQuality "1"]
[WhiteTeam "Ugra"]
[BlackTeam "Novy Bor"]
[TimeControl "40/5400+30:1800+30"]

1. d4 {[%emt 0:00:00]} f5 {[%emt 0:00:01]} 2. c4 {[%emt 0:00:00]} Nf6 {[%emt 0:00:11]} 3. Nf3 {[%emt 0:00:05]} g6 {[%emt 0:00:56]} 4. g3 {[%emt 0:00:17]} Bg7 {[%emt 0:00:18]} 5. Bg2 {[%emt 0:00:04]} O-O {[%emt 0:00:23]} 6. O-O {[%emt 0:00:11]} d6 {[%emt 0:00:26]} 7. Nc3 {[%emt 0:00:12]} c6 {[%emt 0:01:11]} 8. d5 {[%emt 0:00:41]} e5 {[%emt 0:03:21]} 9. dxe6 {[%emt 0:00:23]} Bxe6 {[%emt 0:00:24]} 10. b3 {[%emt 0:00:07]} Na6 {[%emt 0:05:38]} 11. Ng5 {[%emt 0:00:25]} Re8 {[%emt 0:02:49]} 12. Bb2 {[%emt 0:14:02]} Qc7 {[%emt 0:04:43]} 13. Rc1 {[%emt 0:14:39]} Qe7 {[%emt 0:03:37]} 14. Nxe6 {[%emt 0:01:19]} Qxe6 {[%emt 0:00:09]} 15. Qc2 {[%emt 0:01:22]} Rad8 {[%emt 0:01:24]} 16. Rcd1 {[%emt 0:02:58]} Nc5 {[%emt 0:02:28]} 17. e3 {[%emt 0:02:25]} Nfe4 {[%emt 0:07:54]} 18. Nxe4 {[%emt 0:09:03]} Nxe4 {[%emt 0:03:05]} 19. Bxg7 {[%emt 0:00:08]} Kxg7 {[%emt 0:00:09]} 20. Rd4 {[%emt 0:00:55]} Ng5 {[%emt 0:06:30]} 21. Rfd1 {[%emt 0:02:22]} Nf7 {[%emt 0:05:08]} 22. Qd2 {[%emt 0:05:53]} Qe5 {[%emt 0:02:47]} 23. e4 {[%emt 0:05:17]} fxe4 {[%emt 0:03:24]} 24. Rxe4 {[%emt 0:00:04]} Qf6 {[%emt 0:01:00]} 25. Qe3 {[%emt 0:01:24]} Rxe4 {[%emt 0:01:29]} 26. Qxe4 {[%emt 0:00:01]} Qe5 {[%emt 0:07:18]} 27. f4 {[%emt 0:07:24]} Qxe4 {[%emt 0:03:47]} 28. Bxe4 {[%emt 0:00:03]} Re8 {[%emt 0:00:21]} 29. Bf3 {[%emt 0:00:05]} Kf6 {[%emt 0:04:08]} 30. Kf2 {[%emt 0:00:29]} a5 {[%emt 0:04:10]} 31. a3 {[%emt 0:09:06]} g5 {[%emt 0:03:37]} 32. fxg5+ {[%emt 0:08:12]} Kxg5 {[%emt 0:00:21]} 33. h4+ {[%emt 0:03:55]} Kf6 {[%emt 0:00:29]} 34. b4 {[%emt 0:03:14]} axb4 {[%emt 0:02:10]} 35. axb4 {[%emt 0:00:02]} Ra8 {[%emt 0:04:49]} 36. Bh5 {[%emt 0:03:53]} Ra4 {[%emt 0:02:29]} 37. Ke3 {[%emt 0:01:31]} Ke7 {[%emt 0:01:22]} 38. Bxf7 {[%emt 0:01:56]} Kxf7 {[%emt 0:00:09]} 39. Rxd6 {[%emt 0:00:08]} Rxb4 {[%emt 0:00:17]} 40. Kd4 {[%emt 0:00:00]} b5 {[%emt 0:00:00]} 41. Rxc6 {[%emt 0:01:46]} Rxc4+ {[%emt 0:07:15]} 42. Rxc4 {[%emt 0:00:04]} bxc4 {[%emt 0:00:09]} 43. Kxc4 {[%emt 0:01:00]} Ke6 {[%emt 0:00:29]} 44. Kd4 {[%emt 0:01:02]} Kf5 {[%emt 0:00:09]} 45. Ke3 {[%emt 0:00:28]} Kg4 {[%emt 0:00:08]} 46. Kf2 {[%emt 0:00:08]} h5 {[%emt 0:00:11]} 47. Kg2 {[%emt 0:00:06]} Kf5 {[%emt 0:00:06]} 48. Kf3 {[%emt 0:00:04]} Ke5 {[%emt 0:00:08]} 49. Ke3 {[%emt 0:00:49]} Kf5 {[%emt 0:00:08]} 50. Kf3 {[%emt 0:00:19]} Ke5 {[%emt 0:00:07]} 51. Kg2 {[%emt 0:01:11]} Kf5 {[%emt 0:00:22]} 52. Kh3 {[%emt 0:00:08]} Ke5 {[%emt 0:00:13]} 53. g4 {[%emt 0:00:05]} hxg4+ {[%emt 0:00:07]} 54. Kxg4 {[%emt 0:00:03]} 1/2-1/2

[Event "24th European Women Club Cup 2019"]
[Site "Ulcinj"]
[Date "2019.11.15"]
[Round "6.12"]
[White "Rodshtein, Tereza"]
[Black "Guseva, Marina"]
[Result "0-1"]
[ECO "B19"]
[WhiteElo "2195"]
[BlackElo "2366"]
[Annotator "NA"]
[PlyCount "110"]
[EventDate "2019.11.10"]
[EventType "team-tourn"]
[EventCountry "MNE"]
[SourceTitle "playchess.com"]
[Source "ChessBase"]
[SourceQuality "1"]
[WhiteTeam "Novy Bor"]
[BlackTeam "Ugra"]
[TimeControl "40/5400+30:1800+30"]

1. e4 {[%emt 0:00:00]} c6 {[%emt 0:00:00]} 2. d4 {[%emt 0:00:00]} d5 {[%emt 0:00:00]} 3. Nd2 {[%emt 0:00:02]} dxe4 {[%emt 0:00:00]} 4. Nxe4 {[%emt 0:00:07]} Bf5 {[%emt 0:00:00]} 5. Ng3 {[%emt 0:00:19]} Bg6 {[%emt 0:00:00]} 6. h4 {[%emt 0:00:21]} h6 {[%emt 0:00:00]} 7. Nf3 {[%emt 0:00:15]} Nd7 {[%emt 0:00:00]} 8. h5 {[%emt 0:00:24]} Bh7 {[%emt 0:00:02]} 9. Bd3 {[%emt 0:00:19]} Bxd3 {[%emt 0:00:04]} 10. Qxd3 {[%emt 0:00:06]} e6 {[%emt 0:00:03]} 11. Bd2 {[%emt 0:00:27]} Ngf6 {[%emt 0:00:04]} 12. O-O-O {[%emt 0:00:40]} Be7 {[%emt 0:00:04]} 13. Kb1 {[%emt 0:01:00]} Qb6 {[%emt 0:00:07]} 14. Ne5 {[%emt 0:00:55]} Rd8 {[%emt 0:07:34]} 15. Qe2 {[%emt 0:03:02]} c5 {[%emt 0:12:18]} 16. Nxd7 {[%emt 0:34:32]} Rxd7 {[%emt 0:00:10]} 17. dxc5 {[%emt 0:01:00]} Bxc5 {[%emt 0:04:59]} 18. Bc3 {[%emt 0:15:48]} Bd4 {[%emt 0:36:14]} 19. Bxd4 {[%emt 0:02:58]} Rxd4 {[%emt 0:00:03]} 20. Rxd4 {[%emt 0:13:39]} Qxd4 {[%emt 0:00:05]} 21. Qb5+ {[%emt 0:00:53]} Qd7 {[%emt 0:00:22]} 22. Qc5 {[%emt 0:02:03]} b6 {[%emt 0:01:29]} 23. Qa3 {[%emt 0:00:23]} Qe7 {[%emt 0:02:54]} 24. Qa4+ {[%emt 0:00:38]} Qd7 {[%emt 0:00:04]} 25. Qa3 {[%emt 0:00:16]} a5 {[%emt 0:05:28]} 26. Kc1 {[%emt 0:06:36]} Qc6 {[%emt 0:06:37]} 27. Rd1 {[%emt 0:02:06]} Nd5 {[%emt 0:00:06]} 28. Ne2 {[%emt 0:04:59]} Nb4 {[%emt 0:06:57]} 29. Nd4 {[%emt 0:00:39]} Qc7 {[%emt 0:09:48]} 30. Qa4+ {[%emt 0:00:32]} Ke7 {[%emt 0:00:05]} 31. a3 {[%emt 0:00:43]} Nd5 {[%emt 0:00:07]} 32. Nc6+ {[%emt 0:01:09]} Kd6 {[%emt 0:00:23]} 33. Nd4 {[%emt 0:00:57]} Ke7 {[%emt 0:00:12]} 34. Nf5+ {[%emt 0:02:45]} Kf6 {[%emt 0:01:48]} 35. Ng3 {[%emt 0:04:07]} Qf4+ {[%emt 0:04:50]} 36. Qxf4+ {[%emt 0:00:05]} Nxf4 {[%emt 0:00:01]} 37. Ne4+ {[%emt 0:01:54]} Ke7 {[%emt 0:02:24]} 38. g4 {[%emt 0:00:15]} f5 {[%emt 0:02:20]} 39. gxf5 {[%emt 0:00:25]} exf5 {[%emt 0:00:27]} 40. Ng3 {[%emt 0:00:00]} Kf6 {[%emt 0:00:00]} 41. Rd7 {[%emt 0:03:13]} Re8 {[%emt 0:03:22]} 42. Kd2 {[%emt 0:00:38]} Re6 {[%emt 0:00:20]} 43. b3 {[%emt 0:04:36]} g6 {[%emt 0:06:31]} 44. hxg6 {[%emt 0:06:24]} Kxg6 {[%emt 0:01:58]} 45. Rd8 {[%emt 0:02:57]} Kg5 {[%emt 0:02:53]} 46. Rf8 {[%emt 0:02:43]} Rf6 {[%emt 0:07:23]} 47. Rg8+ {[%emt 0:00:26]} Ng6 {[%emt 0:01:00]} 48. Ke2 {[%emt 0:05:34]} h5 {[%emt 0:02:27]} 49. c4 {[%emt 0:00:33]} h4 {[%emt 0:02:45]} 50. Nf1 {[%emt 0:00:05]} Re6+ {[%emt 0:00:36]} 51. Kf3 {[%emt 0:00:19]} Rd6 {[%emt 0:00:51]} 52. Re8 {[%emt 0:03:07]} Rd1 {[%emt 0:01:01]} 53. Nh2 {[%emt 0:01:07]} Rb1 {[%emt 0:00:15]} 54. Re3 {[%emt 0:00:25]} Nf4 {[%emt 0:00:13]} 55. b4 {[%emt 0:03:41]} axb4 {[%emt 0:01:01]} 0-1

[Event "24th European Women Club Cup 2019"]
[Site "Ulcinj"]
[Date "2019.11.15"]
[Round "6.13"]
[White "Khademalsharieh, Sarasadat"]
[Black "Gunina, Valentina"]
[Result "1-0"]
[ECO "E10"]
[WhiteElo "2491"]
[BlackElo "2509"]
[Annotator "ChessBase"]
[PlyCount "63"]
[EventDate "2019.11.10"]
[EventType "team-tourn"]
[EventCountry "MNE"]
[SourceTitle "playchess.com"]
[Source "ChessBase"]
[SourceQuality "1"]
[WhiteTeam "Pentole Agnelli"]
[BlackTeam "Maribor"]
[TimeControl "40/5400+30:1800+30"]

1. d4 {[%emt 0:00:00]} Nf6 {[%emt 0:00:00]} 2. c4 {[%emt 0:00:00]} e6 {[%emt 0:00:00]} 3. Nf3 {[%emt 0:00:00]} c5 {[%emt 0:00:00]} 4. d5 {[%emt 0:00:00]} b5 {[%emt 0:00:00]} 5. Bg5 {[%emt 0:00:10]} exd5 {[%emt 0:00:30]} 6. cxd5 {[%emt 0:00:07]} h6 {[%emt 0:00:07]} 7. Bxf6 {[%emt 0:00:25]} Qxf6 {[%emt 0:00:05]} 8. Qc2 {[%emt 0:00:06]} Be7 {[%emt 0:00:15]} 9. a4 {[%emt 0:02:18]} bxa4 {[%emt 0:04:49]} 10. e4 {[%emt 0:06:47]} Na6 {[%emt 0:05:27]} 11. Nc3 {[%emt 0:08:10]} Nb4 {[%emt 0:03:30]} 12. Qxa4 {[%emt 0:05:41]} O-O {[%emt 0:06:38]} 13. Be2 {[%emt 0:00:36]} d6 {[%emt 0:00:38]} 14. O-O {[%emt 0:01:44]} Bg4 {[%emt 0:01:23]} 15. Qd1 {[%emt 0:00:56]} a5 {[%emt 0:07:27]} 16. Nd2 {[%emt 0:03:57]} Bd7 {[%emt 0:10:59]} 17. Nc4 {[%emt 0:00:49]} Bd8 {[%emt 0:00:07]} 18. Bg4 {[%emt 0:09:42]} Be8 {[%emt 0:13:17]} 19. Qe2 {[%emt 0:09:15]} Ra6 {[%emt 0:07:21]} 20. Kh1 {[%emt 0:01:49]} Bc7 {[%emt 0:05:04]} 21. f4 {[%emt 0:13:15]} Qd8 {[%emt 0:00:26]} 22. Rad1 {[%emt 0:01:21]} Bb8 {[%emt 0:02:45]} 23. e5 {[%emt 0:02:22]} Ra7 {[%emt 0:00:35]} 24. f5 {[%emt 0:08:17]} dxe5 {[%emt 0:01:50]} 25. f6 {[%emt 0:00:06]} e4 {[%emt 0:02:02]} 26. Qxe4 {[%emt 0:03:07]} Bd7 {[%emt 0:06:15]} 27. Bxd7 {[%emt 0:01:58]} Rxd7 {[%emt 0:07:46]} 28. Qg4 {[%emt 0:01:01]} g6 {[%emt 0:00:01]} 29. Qh4 {[%emt 0:01:11]} Kh7 {[%emt 0:00:29]} 30. d6 {[%emt 0:04:34]} h5 {[%emt 0:14:18]} 31. Rf5 {[%emt 0:00:48]} Kh6 {[%emt 0:00:51]} 32. g4 {[%emt 0:00:23]} 1-0

[Event "24th European Women Club Cup 2019"]
[Site "Ulcinj"]
[Date "2019.11.15"]
[Round "6.14"]
[White "Caglar, Sila"]
[Black "Paehtz, Elisabeth"]
[Result "1-0"]
[ECO "B28"]
[WhiteElo "2242"]
[BlackElo "2484"]
[Annotator "ChessBase"]
[PlyCount "127"]
[EventDate "2019.11.10"]
[EventType "team-tourn"]
[EventCountry "MNE"]
[SourceTitle "playchess.com"]
[Source "ChessBase"]
[SourceQuality "1"]
[WhiteTeam "Maribor"]
[BlackTeam "Pentole Agnelli"]
[TimeControl "40/5400+30:1800+30"]

1. e4 {[%emt 0:00:00]} c5 {[%emt 0:00:00]} 2. Nf3 {[%emt 0:00:00]} a6 {[%emt 0:00:00]} 3. d4 {[%emt 0:01:45]} cxd4 {[%emt 0:00:00]} 4. Nxd4 {[%emt 0:00:03]} Nf6 {[%emt 0:00:05]} 5. Nc3 {[%emt 0:00:26]} e5 {[%emt 0:01:10]} 6. Nb3 {[%emt 0:07:30]} Bb4 {[%emt 0:00:30]} 7. Bd3 {[%emt 0:01:48]} Nc6 {[%emt 0:03:09]} 8. O-O {[%emt 0:00:38]} Bxc3 {[%emt 0:07:52]} 9. bxc3 {[%emt 0:00:02]} O-O {[%emt 0:00:50]} 10. c4 {[%emt 0:02:04]} d6 {[%emt 0:00:34]} 11. Bb2 {[%emt 0:04:15]} a5 {[%emt 0:00:41]} 12. Qe2 {[%emt 0:07:40]} a4 {[%emt 0:00:49]} 13. Nd2 {[%emt 0:00:06]} Nd7 {[%emt 0:02:23]} 14. Kh1 {[%emt 0:02:17]} Nc5 {[%emt 0:05:31]} 15. a3 {[%emt 0:05:01]} Qg5 {[%emt 0:07:11]} 16. Rae1 {[%emt 0:16:50]} Bd7 {[%emt 0:14:15]} 17. Qe3 {[%emt 0:08:37]} h6 {[%emt 0:05:08]} 18. f4 {[%emt 0:02:48]} exf4 {[%emt 0:00:04]} 19. Rxf4 {[%emt 0:00:12]} Ne6 {[%emt 0:06:51]} 20. Rf5 {[%emt 0:02:41]} Qxe3 {[%emt 0:00:06]} 21. Rxe3 {[%emt 0:00:01]} Ne7 {[%emt 0:00:55]} 22. Rg3 {[%emt 0:03:11]} Rfc8 {[%emt 0:09:16]} 23. Rh5 {[%emt 0:01:49]} Ng6 {[%emt 0:05:48]} 24. Rd5 {[%emt 0:02:40]} Kf8 {[%emt 0:16:54]} 25. Rxd6 {[%emt 0:01:07]} Ke7 {[%emt 0:00:07]} 26. Rb6 {[%emt 0:05:51]} Bc6 {[%emt 0:00:35]} 27. Bc3 {[%emt 0:00:08]} Ngf4 {[%emt 0:02:28]} 28. Rb1 {[%emt 0:01:33]} g5 {[%emt 0:01:19]} 29. Bb4+ {[%emt 0:00:35]} Kf6 {[%emt 0:01:58]} 30. Re3 {[%emt 0:00:41]} Kg7 {[%emt 0:00:32]} 31. Nf3 {[%emt 0:03:07]} Ng6 {[%emt 0:01:10]} 32. Kg1 {[%emt 0:00:51]} Kg8 {[%emt 0:02:27]} 33. Bc3 {[%emt 0:01:26]} Rd8 {[%emt 0:00:59]} 34. Rf1 {[%emt 0:03:05]} Rd7 {[%emt 0:00:23]} 35. Bf6 {[%emt 0:02:01]} Re8 {[%emt 0:02:13]} 36. g3 {[%emt 0:00:49]} Ng7 {[%emt 0:02:50]} 37. e5 {[%emt 0:03:49]} Nh5 {[%emt 0:00:40]} 38. Rfe1 {[%emt 0:02:20]} Nf8 {[%emt 0:00:15]} 39. h4 {[%emt 0:01:23]} g4 {[%emt 0:00:45]} 40. Nh2 {[%emt 0:00:00]} Nxf6 {[%emt 0:00:00]} 41. exf6 {[%emt 0:00:29]} Rxe3 {[%emt 0:00:17]} 42. Rxe3 {[%emt 0:00:01]} Rd4 {[%emt 0:08:11]} 43. c3 {[%emt 0:02:27]} Rd8 {[%emt 0:00:10]} 44. Nxg4 {[%emt 0:00:05]} Nd7 {[%emt 0:00:07]} 45. Re7 {[%emt 0:02:11]} Kf8 {[%emt 0:01:01]} 46. Nxh6 {[%emt 0:01:05]} Nxf6 {[%emt 0:00:25]} 47. Rxf7+ {[%emt 0:00:06]} Ke8 {[%emt 0:00:02]} 48. Bg6 {[%emt 0:01:23]} Rd1+ {[%emt 0:00:15]} 49. Kf2 {[%emt 0:00:04]} Ne4+ {[%emt 0:00:11]} 50. Ke3 {[%emt 0:01:25]} Kd8 {[%emt 0:01:55]} 51. Bxe4 {[%emt 0:01:43]} Re1+ {[%emt 0:00:01]} 52. Kd3 {[%emt 0:05:19]} Bxe4+ {[%emt 0:00:06]} 53. Kd4 {[%emt 0:00:20]} Bc6 {[%emt 0:00:17]} 54. Nf5 {[%emt 0:01:03]} Ra1 {[%emt 0:00:19]} 55. h5 {[%emt 0:00:27]} Be8 {[%emt 0:00:42]} 56. Rh7 {[%emt 0:02:34]} Rxa3 {[%emt 0:00:24]} 57. Nd6 {[%emt 0:01:30]} Bc6 {[%emt 0:00:41]} 58. h6 {[%emt 0:04:52]} Ra1 {[%emt 0:00:30]} 59. Rg7 {[%emt 0:00:10]} Rh1 {[%emt 0:00:00]} 60. h7 {[%emt 0:00:24]} a3 {[%emt 0:00:34]} 61. Rg8+ {[%emt 0:00:24]} Kd7 {[%emt 0:00:16]} 62. h8=Q {[%emt 0:00:03]} Rxh8 {[%emt 0:00:05]} 63. Rxh8 {[%emt 0:00:09]} a2 {[%emt 0:00:00]} 64. Ra8 {[%emt 0:00:05]} 1-0

[Event "24th European Women Club Cup 2019"]
[Site "Ulcinj"]
[Date "2019.11.15"]
[Round "6.15"]
[White "Zimina, Olga"]
[Black "Vidic, Teja"]
[Result "1/2-1/2"]
[ECO "A05"]
[WhiteElo "2406"]
[BlackElo "2189"]
[Annotator "NA"]
[PlyCount "68"]
[EventDate "2019.11.10"]
[EventType "team-tourn"]
[EventCountry "MNE"]
[SourceTitle "playchess.com"]
[Source "ChessBase"]
[SourceQuality "1"]
[WhiteTeam "Pentole Agnelli"]
[BlackTeam "Maribor"]
[TimeControl "40/5400+30:1800+30"]

1. Nf3 {[%emt 0:00:00]} Nf6 {[%emt 0:00:00]} 2. g3 {[%emt 0:02:06]} e6 {[%emt 0:00:16]} 3. Bg2 {[%emt 0:00:20]} d5 {[%emt 0:00:05]} 4. O-O Be7 {[%emt 0:00:23]} 5. c4 {[%emt 0:00:51]} O-O {[%emt 0:00:07]} 6. d4 {[%emt 0:00:06]} dxc4 {[%emt 0:00:48]} 7. Qc2 {[%emt 0:00:05]} a6 {[%emt 0:00:53]} 8. a4 {[%emt 0:00:14]} Bd7 {[%emt 0:01:01]} 9. Rd1 {[%emt 0:00:10]} Bc6 {[%emt 0:00:10]} 10. Nc3 {[%emt 0:00:13]} Bxf3 {[%emt 0:00:21]} 11. Bxf3 {[%emt 0:00:04]} Nc6 {[%emt 0:00:07]} 12. Bxc6 {[%emt 0:00:13]} bxc6 {[%emt 0:00:05]} 13. a5 {[%emt 0:00:53]} Rb8 {[%emt 0:00:34]} 14. Qa4 {[%emt 0:04:38]} Rb4 {[%emt 0:00:05]} 15. Qxc6 {[%emt 0:00:59]} Qd6 {[%emt 0:00:10]} 16. Qf3 {[%emt 0:01:13]} Nd5 {[%emt 0:05:41]} 17. e4 {[%emt 0:22:53]} Nxc3 {[%emt 0:00:30]} 18. bxc3 {[%emt 0:00:37]} Rb3 {[%emt 0:01:44]} 19. Bf4 {[%emt 0:00:08]} Qd7 {[%emt 0:09:57]} 20. d5 {[%emt 0:07:24]} Bb4 {[%emt 0:15:46]} 21. Be5 {[%emt 0:03:16]} f6 {[%emt 0:03:13]} 22. Qg4 {[%emt 0:02:31]} fxe5 {[%emt 0:02:47]} 23. dxe6 {[%emt 0:06:22]} Qe8 {[%emt 0:00:08]} 24. cxb4 {[%emt 0:01:25]} h5 {[%emt 0:00:16]} 25. Qe2 {[%emt 0:11:38]} Qxe6 {[%emt 0:01:17]} 26. Rac1 {[%emt 0:01:14]} Rxb4 {[%emt 0:06:05]} 27. Rd5 {[%emt 0:01:36]} h4 {[%emt 0:13:39]} 28. Rc5 {[%emt 0:03:47]} Ra4 {[%emt 0:02:37]} 29. R5xc4 {[%emt 0:02:17]} Rxa5 {[%emt 0:01:56]} 30. Rxc7 {[%emt 0:03:21]} Ra2 {[%emt 0:02:36]} 31. R7c2 {[%emt 0:02:03]} Ra4 {[%emt 0:01:52]} 32. Rc6 {[%emt 0:00:15]} Ra2 {[%emt 0:01:18]} 33. R6c2 {[%emt 0:05:55]} Ra4 {[%emt 0:00:11]} 34. Rc6 {[%emt 0:00:20]} Ra2 {[%emt 0:00:13]} 1/2-1/2

[Event "24th European Women Club Cup 2019"]
[Site "Ulcinj"]
[Date "2019.11.15"]
[Round "6.16"]
[White "Mar, Karmen"]
[Black "Brunello, Marina"]
[Result "1/2-1/2"]
[ECO "B53"]
[WhiteElo "2041"]
[BlackElo "2378"]
[Annotator "NA"]
[PlyCount "95"]
[EventDate "2019.11.10"]
[EventType "team-tourn"]
[EventCountry "MNE"]
[SourceTitle "playchess.com"]
[Source "ChessBase"]
[SourceQuality "1"]
[WhiteTeam "Maribor"]
[BlackTeam "Pentole Agnelli"]
[TimeControl "40/5400+30:1800+30"]

1. e4 {[%emt 0:00:00]} c5 {[%emt 0:00:00]} 2. Nf3 {[%emt 0:00:00]} d6 {[%emt 0:00:00]} 3. d4 {[%emt 0:00:04]} cxd4 {[%emt 0:00:00]} 4. Qxd4 {[%emt 0:00:08]} Nc6 {[%emt 0:00:00]} 5. Bb5 {[%emt 0:00:19]} a6 {[%emt 0:00:06]} 6. Bxc6+ {[%emt 0:00:32]} bxc6 {[%emt 0:00:05]} 7. O-O {[%emt 0:07:03]} e5 {[%emt 0:00:14]} 8. Qa4 {[%emt 0:04:42]} Qc7 {[%emt 0:06:20]} 9. c4 {[%emt 0:02:14]} Bd7 {[%emt 0:08:13]} 10. Qc2 {[%emt 0:02:51]} Nf6 {[%emt 0:01:03]} 11. Re1 {[%emt 0:03:46]} Bg4 {[%emt 0:05:34]} 12. Nbd2 {[%emt 0:01:48]} Nd7 {[%emt 0:00:15]} 13. h3 {[%emt 0:01:06]} Be6 {[%emt 0:00:13]} 14. Ng5 {[%emt 0:04:03]} Be7 {[%emt 0:00:26]} 15. Nxe6 {[%emt 0:00:37]} fxe6 {[%emt 0:00:04]} 16. Nf3 {[%emt 0:01:44]} O-O {[%emt 0:06:39]} 17. b3 {[%emt 0:11:36]} c5 {[%emt 0:06:47]} 18. Be3 {[%emt 0:08:49]} Nb8 {[%emt 0:00:27]} 19. Rac1 {[%emt 0:07:20]} Nc6 {[%emt 0:00:11]} 20. Qe2 {[%emt 0:03:44]} a5 {[%emt 0:03:45]} 21. a4 {[%emt 0:17:41]} Rab8 {[%emt 0:02:02]} 22. Rb1 {[%emt 0:00:45]} Bf6 {[%emt 0:01:42]} 23. Red1 {[%emt 0:01:14]} Rb7 {[%emt 0:04:14]} 24. Nd2 {[%emt 0:03:30]} Qe7 {[%emt 0:02:46]} 25. Qg4 {[%emt 0:02:43]} Rfb8 {[%emt 0:02:35]} 26. Kh2 {[%emt 0:02:50]} g6 {[%emt 0:03:33]} 27. Rb2 {[%emt 0:01:52]} Kg7 {[%emt 0:00:52]} 28. Rdb1 {[%emt 0:01:00]} h5 {[%emt 0:00:51]} 29. Qe2 {[%emt 0:01:03]} Bg5 {[%emt 0:09:25]} 30. Nf3 {[%emt 0:01:03]} Bf6 {[%emt 0:02:43]} 31. Ne1 {[%emt 0:03:35]} Kh7 {[%emt 0:05:13]} 32. Qd2 {[%emt 0:02:13]} Bg7 {[%emt 0:01:14]} 33. Bg5 {[%emt 0:01:23]} Qc7 {[%emt 0:00:16]} 34. Be3 {[%emt 0:00:25]} Nd4 {[%emt 0:01:16]} 35. Bxd4 {[%emt 0:00:34]} exd4 {[%emt 0:00:07]} 36. Qd3 {[%emt 0:02:09]} d5+ {[%emt 0:00:59]} 37. Kg1 {[%emt 0:00:31]} dxc4 {[%emt 0:06:44]} 38. Qxc4 {[%emt 0:00:17]} Rb4 {[%emt 0:00:03]} 39. Qxe6 {[%emt 0:01:02]} c4 {[%emt 0:00:19]} 40. Nf3 {[%emt 0:00:00]} Qb6 {[%emt 0:00:00]} 41. Ng5+ {[%emt 0:09:47]} Kh8 {[%emt 0:11:00]} 42. Qd5 {[%emt 0:05:33]} Bf6 {[%emt 0:04:30]} 43. Nf7+ {[%emt 0:02:00]} Kh7 {[%emt 0:01:41]} 44. e5 {[%emt 0:03:46]} Bg7 {[%emt 0:01:53]} 45. Ng5+ {[%emt 0:01:35]} Kh6 {[%emt 0:00:41]} 46. Nf7+ {[%emt 0:00:19]} Kh7 {[%emt 0:00:03]} 47. Ng5+ {[%emt 0:00:20]} Kh6 {[%emt 0:00:04]} 48. Nf7+ {[%emt 0:00:23]} 1/2-1/2